[Event "*** Titled Tuesday Blitz"]
[Site "Chess.com"]
[Date "2020.04.28"]
[Round "4"]
[White "Sanan_Sjugirov"]
[Black "xamax2000"]
[Result "0-1"]
[WhiteElo "2852"]
[BlackElo "2725"]
[TimeControl "180+1"]
[EndTime "10:41:11 PDT"]
[Termination "xamax2000 won by resignation"]

1. e4 {[%clk 0:03:00.9]} 1... c5 {[%clk 0:02:47.8]} 2. Nf3 {[%clk 0:03:00.5]}
2... e6 {[%clk 0:02:47.5]} 3. d3 {[%clk 0:03:00.1]} 3... Nc6 {[%clk 0:02:45.4]}
4. g3 {[%clk 0:02:59.1]} 4... Nf6 {[%clk 0:02:43.1]} 5. Bg2 {[%clk 0:02:58.4]}
5... d6 {[%clk 0:02:43.4]} 6. O-O {[%clk 0:02:57.6]} 6... Be7 {[%clk 0:02:43.9]}
7. c4 {[%clk 0:02:45.9]} 7... O-O {[%clk 0:02:43]} 8. Nc3 {[%clk 0:02:46.1]}
8... Nd7 {[%clk 0:01:50.4]} 9. Be3 {[%clk 0:02:36.8]} 9... Nde5 {[%clk
0:01:46.3]} 10. Ne1 {[%clk 0:02:35.6]} 10... Nd4 {[%clk 0:01:42.5]} 11. Bxd4
{[%clk 0:01:59.6]} 11... cxd4 {[%clk 0:01:43.4]} 12. Ne2 {[%clk 0:02:00.1]}
12... Nc6 {[%clk 0:01:35.8]} 13. f4 {[%clk 0:01:58.5]} 13... Qb6 {[%clk
0:01:16.7]} 14. Qd2 {[%clk 0:01:57.3]} 14... Bd7 {[%clk 0:01:13.6]} 15. Nf3
{[%clk 0:01:56.1]} 15... Qc5 {[%clk 0:01:01.7]} 16. a3 {[%clk 0:01:54.2]} 16...
a5 {[%clk 0:01:01.3]} 17. b3 {[%clk 0:01:28.3]} 17... Ra6 {[%clk 0:00:56.7]} 18.
Kh1 {[%clk 0:01:25.2]} 18... b5 {[%clk 0:00:45.8]} 19. Rfc1 {[%clk 0:00:57.8]}
19... bxc4 {[%clk 0:00:39.9]} 20. Rxc4 {[%clk 0:00:49.8]} 20... Qb6 {[%clk
0:00:40.4]} 21. Qd1 {[%clk 0:00:27]} 21... Rb8 {[%clk 0:00:29.2]} 22. Nc1 {[%clk
0:00:22.9]} 22... Ra7 {[%clk 0:00:23.1]} 23. Rc2 {[%clk 0:00:22.6]} 23... Rc7
{[%clk 0:00:21.1]} 24. Rb1 {[%clk 0:00:20.5]} 24... Rbc8 {[%clk 0:00:21.2]} 25.
Ne2 {[%clk 0:00:19.8]} 25... e5 {[%clk 0:00:19.5]} 26. f5 {[%clk 0:00:17.7]}
26... Na7 {[%clk 0:00:19.8]} 27. Rxc7 {[%clk 0:00:11]} 27... Rxc7 {[%clk
0:00:20.7]} 28. Nd2 {[%clk 0:00:09.9]} 28... Nb5 {[%clk 0:00:17.1]} 29. Nc4
{[%clk 0:00:10]} 29... Qa7 {[%clk 0:00:17.4]} 30. Qd2 {[%clk 0:00:07.2]} 30...
d5 {[%clk 0:00:09.8]} 31. exd5 {[%clk 0:00:07.1]} 31... Nxa3 {[%clk 0:00:10.7]}
32. Ra1 {[%clk 0:00:04]} 32... Bb4 {[%clk 0:00:10.4]} 33. Qb2 {[%clk 0:00:03.1]}
33... Nb5 {[%clk 0:00:10.6]} 34. Rf1 {[%clk 0:00:02.8]} 34... f6 {[%clk
0:00:10.5]} 35. h4 {[%clk 0:00:02.6]} 35... Nd6 {[%clk 0:00:10.6]} 36. Qc1
{[%clk 0:00:02.9]} 36... a4 {[%clk 0:00:10.1]} 37. g4 {[%clk 0:00:03]} 37...
axb3 {[%clk 0:00:09.9]} 38. g5 {[%clk 0:00:03.6]} 38... Nxc4 {[%clk 0:00:09.5]}
39. dxc4 {[%clk 0:00:03.6]} 39... d3 {[%clk 0:00:10.1]} 40. Ng3 {[%clk
0:00:03.7]} 40... Qd4 {[%clk 0:00:09.9]} 41. Ne4 {[%clk 0:00:02.7]} 41... d2
{[%clk 0:00:09.7]} 42. Qd1 {[%clk 0:00:03.2]} 42... b2 {[%clk 0:00:09.4]} 43.
gxf6 {[%clk 0:00:03.6]} 43... Bxf5 {[%clk 0:00:08.6]} 44. f7+ {[%clk 0:00:03.5]}
44... Rxf7 {[%clk 0:00:08.3]} 45. Qh5 {[%clk 0:00:03.3]} 45... g6 {[%clk
0:00:08]} 46. Qg5 {[%clk 0:00:03]} 46... Bxe4 {[%clk 0:00:07.7]} 47. Qd8+ {[%clk
0:00:03.2]} 47... Bf8 {[%clk 0:00:07.1]} 48. Rxf7 {[%clk 0:00:04.1]} 48... d1=Q+
{[%clk 0:00:05.8]} 49. Kh2 {[%clk 0:00:04.6]} 49... Q1g1+ {[%clk 0:00:05.7]} 0-1

[Event "*** Titled Tuesday Blitz"]
[Site "Chess.com"]
[Date "2020.04.28"]
[Round "4"]
[White "ZarinaShafigullina"]
[Black "Borsuk_Konstantin"]
[Result "0-1"]
[WhiteElo "2203"]
[BlackElo "2572"]
[TimeControl "180+1"]
[EndTime "10:41:11 PDT"]
[Termination "Borsuk_Konstantin won on time"]

1. d4 {[%clk 0:03:00.9]} 1... Nf6 {[%clk 0:02:59]} 2. Nf3 {[%clk 0:03:01.8]}
2... e6 {[%clk 0:02:58.8]} 3. g3 {[%clk 0:03:01.6]} 3... b6 {[%clk 0:02:58.6]}
4. Bg2 {[%clk 0:03:01.8]} 4... Bb7 {[%clk 0:02:58.8]} 5. O-O {[%clk 0:03:02.3]}
5... Be7 {[%clk 0:02:57.7]} 6. c4 {[%clk 0:03:02.8]} 6... O-O {[%clk 0:02:57.6]}
7. Nc3 {[%clk 0:03:03.1]} 7... Ne4 {[%clk 0:02:57.5]} 8. Bd2 {[%clk 0:03:03.1]}
8... f5 {[%clk 0:02:56]} 9. Ne5 {[%clk 0:02:51.5]} 9... d6 {[%clk 0:02:42.7]}
10. Nd3 {[%clk 0:02:48]} 10... Nxc3 {[%clk 0:02:23.7]} 11. Bxc3 {[%clk
0:02:46.6]} 11... Bxg2 {[%clk 0:02:24.2]} 12. Kxg2 {[%clk 0:02:47]} 12... g5
{[%clk 0:02:14.5]} 13. f4 {[%clk 0:02:38.9]} 13... Qe8 {[%clk 0:02:01]} 14. Re1
{[%clk 0:02:26.2]} 14... Qc6+ {[%clk 0:01:56.7]} 15. Kg1 {[%clk 0:02:19.4]}
15... Qxc4 {[%clk 0:01:56.4]} 16. e4 {[%clk 0:02:12]} 16... Bf6 {[%clk
0:01:19.9]} 17. e5 {[%clk 0:02:05.1]} 17... dxe5 {[%clk 0:01:18.9]} 18. Nxe5
{[%clk 0:01:47.6]} 18... Bxe5 {[%clk 0:01:18.6]} 19. fxe5 {[%clk 0:01:30.6]}
19... Nc6 {[%clk 0:00:48.9]} 20. Qh5 {[%clk 0:01:29.7]} 20... Rf7 {[%clk
0:00:48.3]} 21. Qxg5+ {[%clk 0:01:27.9]} 21... Rg7 {[%clk 0:00:48.3]} 22. Qd2
{[%clk 0:01:15.4]} 22... Rd8 {[%clk 0:00:45.5]} 23. Rad1 {[%clk 0:00:52.2]}
23... Qxa2 {[%clk 0:00:44.2]} 24. d5 {[%clk 0:00:33.3]} 24... Qxd5 {[%clk
0:00:40.3]} 25. Qxd5 {[%clk 0:00:14.9]} 25... Rxd5 {[%clk 0:00:39.5]} 26. Rxd5
{[%clk 0:00:14.4]} 26... exd5 {[%clk 0:00:40.4]} 27. e6 {[%clk 0:00:14.7]} 27...
d4 {[%clk 0:00:40.1]} 28. e7 {[%clk 0:00:11.7]} 28... Rxe7 {[%clk 0:00:39.5]}
29. Rxe7 {[%clk 0:00:11.2]} 29... Nxe7 {[%clk 0:00:40.4]} 30. Bxd4 {[%clk
0:00:11.5]} 30... Kf7 {[%clk 0:00:39.8]} 31. Kf2 {[%clk 0:00:11.3]} 31... Ke6
{[%clk 0:00:39.4]} 32. Kf3 {[%clk 0:00:11.6]} 32... Nd5 {[%clk 0:00:40.3]} 33.
h3 {[%clk 0:00:10.4]} 33... c5 {[%clk 0:00:39.9]} 34. Bg7 {[%clk 0:00:10.3]}
34... a5 {[%clk 0:00:39.8]} 35. g4 {[%clk 0:00:09.1]} 35... fxg4+ {[%clk
0:00:39.2]} 36. Kxg4 {[%clk 0:00:09.4]} 36... a4 {[%clk 0:00:39.2]} 37. Kh5
{[%clk 0:00:09.1]} 37... Kf7 {[%clk 0:00:37.6]} 38. Be5 {[%clk 0:00:08.3]} 38...
b5 {[%clk 0:00:36.9]} 39. Kg4 {[%clk 0:00:08.1]} 39... Ke6 {[%clk 0:00:35.9]}
40. Bg7 {[%clk 0:00:07.4]} 40... b4 {[%clk 0:00:35.6]} 41. Kh5 {[%clk
0:00:07.2]} 41... c4 {[%clk 0:00:31.4]} 42. Kh6 {[%clk 0:00:05.7]} 42... Nf6
{[%clk 0:00:26.4]} 43. Bf8 {[%clk 0:00:04.2]} 43... b3 {[%clk 0:00:24]} 44. Bb4
{[%clk 0:00:03.6]} 44... Nd5 {[%clk 0:00:22.6]} 45. Bd2 {[%clk 0:00:01.5]} 45...
c3 {[%clk 0:00:21.3]} 46. Bc1 {[%clk 0:00:02]} 46... cxb2 {[%clk 0:00:16.6]} 47.
Bxb2 {[%clk 0:00:02.3]} 47... Nb4 {[%clk 0:00:16.4]} 48. Kxh7 {[%clk 0:00:02.2]}
48... Nd3 {[%clk 0:00:16.9]} 49. Ba3 {[%clk 0:00:01.6]} 49... b2 {[%clk
0:00:17.1]} 0-1

[Event "*** Titled Tuesday Blitz"]
[Site "Chess.com"]
[Date "2020.04.28"]
[Round "4"]
[White "Dr_Thomas_Quilter"]
[Black "Nara_Kh"]
[Result "0-1"]
[WhiteElo "2225"]
[BlackElo "2461"]
[TimeControl "180+1"]
[EndTime "10:41:11 PDT"]
[Termination "Nara_Kh won by checkmate"]

1. Nc3 {[%clk 0:03:00.9]} 1... Nf6 {[%clk 0:02:56.1]} 2. e4 {[%clk 0:02:59.9]}
2... d6 {[%clk 0:02:56]} 3. d4 {[%clk 0:02:56.7]} 3... g6 {[%clk 0:02:55.8]} 4.
f3 {[%clk 0:02:56]} 4... c6 {[%clk 0:02:53]} 5. Be3 {[%clk 0:02:54.9]} 5... b5
{[%clk 0:02:53]} 6. Qd2 {[%clk 0:02:54.8]} 6... Nbd7 {[%clk 0:02:52.3]} 7. g4
{[%clk 0:02:51.7]} 7... Bb7 {[%clk 0:02:48.7]} 8. h4 {[%clk 0:02:51.7]} 8... h5
{[%clk 0:02:43.2]} 9. g5 {[%clk 0:02:50.4]} 9... Nh7 {[%clk 0:02:38.4]} 10. f4
{[%clk 0:02:47.7]} 10... b4 {[%clk 0:02:33.8]} 11. Nce2 {[%clk 0:02:44.2]} 11...
c5 {[%clk 0:02:33.3]} 12. Bg2 {[%clk 0:02:39.7]} 12... Bg7 {[%clk 0:02:26.9]}
13. f5 {[%clk 0:02:37.4]} 13... gxf5 {[%clk 0:02:21.2]} 14. Nf4 {[%clk 0:02:38]}
14... fxe4 {[%clk 0:01:59.7]} 15. Nxh5 {[%clk 0:02:24.7]} 15... Rg8 {[%clk
0:01:51.5]} 16. Nh3 {[%clk 0:02:08.5]} 16... Bxd4 {[%clk 0:01:38.6]} 17. Bxd4
{[%clk 0:01:45.5]} 17... cxd4 {[%clk 0:01:39.5]} 18. Qxd4 {[%clk 0:01:42.4]}
18... Qb6 {[%clk 0:01:38.7]} 19. O-O-O {[%clk 0:01:36]} 19... d5 {[%clk
0:01:02]} 20. N3f4 {[%clk 0:01:22.4]} 20... e6 {[%clk 0:00:56.4]} 21. Bh3 {[%clk
0:01:10.1]} 21... Qxd4 {[%clk 0:00:49.8]} 22. Rxd4 {[%clk 0:01:09.9]} 22... a5
{[%clk 0:00:49.4]} 23. g6 {[%clk 0:01:02.6]} 23... fxg6 {[%clk 0:00:42]} 24.
Bxe6 {[%clk 0:00:52]} 24... Rf8 {[%clk 0:00:18.3]} 25. Nxg6 {[%clk 0:00:47]}
25... Rf2 {[%clk 0:00:18.9]} 26. Bxd5 {[%clk 0:00:40.6]} 26... Bxd5 {[%clk
0:00:19]} 27. Rxd5 {[%clk 0:00:40.9]} 27... Rc8 {[%clk 0:00:19.6]} 28. Ng7+
{[%clk 0:00:33.8]} 28... Kf7 {[%clk 0:00:18.9]} 29. Rxd7+ {[%clk 0:00:33.8]}
29... Kxg6 {[%clk 0:00:19.1]} 30. Rg1+ {[%clk 0:00:31.9]} 30... Kf6 {[%clk
0:00:17.4]} 31. Nh5+ {[%clk 0:00:24.6]} 31... Ke6 {[%clk 0:00:17.2]} 32. Rd2
{[%clk 0:00:23.2]} 32... Rxd2 {[%clk 0:00:15.6]} 33. Kxd2 {[%clk 0:00:23.4]}
33... Ke5 {[%clk 0:00:15.9]} 34. Rg7 {[%clk 0:00:21.6]} 34... Nf6 {[%clk
0:00:14.1]} 35. Re7+ {[%clk 0:00:20.5]} 35... Kd6 {[%clk 0:00:14.3]} 36. Ra7
{[%clk 0:00:16]} 36... Nxh5 {[%clk 0:00:14]} 37. Ra6+ {[%clk 0:00:15.7]} 37...
Ke7 {[%clk 0:00:12.6]} 38. Ra7+ {[%clk 0:00:15.5]} 38... Kf6 {[%clk 0:00:12.4]}
39. Ra6+ {[%clk 0:00:15.5]} 39... Kf5 {[%clk 0:00:12.8]} 40. Rxa5+ {[%clk
0:00:15.7]} 40... Kg4 {[%clk 0:00:13.5]} 41. Re5 {[%clk 0:00:11.1]} 41... Ng3
{[%clk 0:00:12.9]} 42. a4 {[%clk 0:00:09.5]} 42... Rf8 {[%clk 0:00:12.7]} 43. a5
{[%clk 0:00:06.5]} 43... Rf2+ {[%clk 0:00:12.3]} 44. Kd1 {[%clk 0:00:06.9]}
44... Rf1+ {[%clk 0:00:12.3]} 45. Kd2 {[%clk 0:00:06.9]} 45... Rf2+ {[%clk
0:00:12.6]} 46. Kd1 {[%clk 0:00:07]} 46... Kf3 {[%clk 0:00:12.2]} 47. Re8 {[%clk
0:00:04.2]} 47... e3 {[%clk 0:00:12.3]} 48. h5 {[%clk 0:00:03.4]} 48... Rf1#
{[%clk 0:00:11.2]} 0-1

[Event "*** Titled Tuesday Blitz"]
[Site "Chess.com"]
[Date "2020.04.28"]
[Round "4"]
[White "BaMBoMaTTo"]
[Black "elisak43"]
[Result "1-0"]
[WhiteElo "2630"]
[BlackElo "2395"]
[TimeControl "180+1"]
[EndTime "10:41:12 PDT"]
[Termination "BaMBoMaTTo won by checkmate"]

1. e4 {[%clk 0:03:00]} 1... e5 {[%clk 0:02:59.5]} 2. Nf3 {[%clk 0:03:00.1]} 2...
Nc6 {[%clk 0:03:00]} 3. Bb5 {[%clk 0:03:00]} 3... a6 {[%clk 0:03:00.3]} 4. Ba4
{[%clk 0:03:00.3]} 4... Nf6 {[%clk 0:03:00.3]} 5. O-O {[%clk 0:03:00.6]} 5...
Be7 {[%clk 0:03:00.6]} 6. Re1 {[%clk 0:03:00.4]} 6... b5 {[%clk 0:03:00.5]} 7.
Bb3 {[%clk 0:03:00.7]} 7... d6 {[%clk 0:03:01.2]} 8. c3 {[%clk 0:03:00.5]} 8...
O-O {[%clk 0:03:01.2]} 9. h3 {[%clk 0:03:00.9]} 9... Na5 {[%clk 0:03:01.6]} 10.
Bc2 {[%clk 0:03:01.2]} 10... c5 {[%clk 0:03:02.2]} 11. d4 {[%clk 0:03:01.4]}
11... Nd7 {[%clk 0:03:02.1]} 12. Nbd2 {[%clk 0:03:00]} 12... exd4 {[%clk
0:03:02.5]} 13. cxd4 {[%clk 0:02:59.9]} 13... Nc6 {[%clk 0:03:03.2]} 14. d5
{[%clk 0:02:59.2]} 14... Nce5 {[%clk 0:03:02.9]} 15. Nxe5 {[%clk 0:02:59.6]}
15... Nxe5 {[%clk 0:03:03.8]} 16. f4 {[%clk 0:02:59.4]} 16... Ng6 {[%clk
0:03:01.2]} 17. Nf3 {[%clk 0:02:59.7]} 17... Bh4 {[%clk 0:02:57.2]} 18. Nxh4
{[%clk 0:02:59.7]} 18... Qxh4 {[%clk 0:02:54.5]} 19. f5 {[%clk 0:02:59.8]} 19...
Ne5 {[%clk 0:02:46]} 20. Rf1 {[%clk 0:02:59.9]} 20... Bd7 {[%clk 0:02:33.4]} 21.
Bf4 {[%clk 0:02:52.6]} 21... Rfe8 {[%clk 0:02:27.8]} 22. Qd2 {[%clk 0:02:45.6]}
22... h6 {[%clk 0:02:09.4]} 23. b3 {[%clk 0:02:40.3]} 23... b4 {[%clk
0:02:07.4]} 24. a4 {[%clk 0:02:37.9]} 24... bxa3 {[%clk 0:02:06.6]} 25. Rxa3
{[%clk 0:02:38.1]} 25... Bb5 {[%clk 0:02:07]} 26. Rc1 {[%clk 0:02:21]} 26...
Rac8 {[%clk 0:01:38.3]} 27. Bb1 {[%clk 0:02:21]} 27... Qf6 {[%clk 0:01:12.4]}
28. Rc3 {[%clk 0:02:06.9]} 28... c4 {[%clk 0:01:05.3]} 29. Kh2 {[%clk
0:01:40.6]} 29... cxb3 {[%clk 0:00:43.5]} 30. Raxb3 {[%clk 0:01:41.2]} 30...
Rxc3 {[%clk 0:00:32.6]} 31. Rxc3 {[%clk 0:01:42.1]} 31... Nc4 {[%clk 0:00:24.2]}
32. Qc1 {[%clk 0:01:41.5]} 32... Qd4 {[%clk 0:00:20.4]} 33. Rg3 {[%clk
0:01:38.5]} 33... Kh7 {[%clk 0:00:18]} 34. e5 {[%clk 0:00:53.3]} 34... f6 {[%clk
0:00:11.3]} 35. exf6 {[%clk 0:00:49.3]} 35... Qxf6 {[%clk 0:00:09.2]} 36. Rg6
{[%clk 0:00:49.3]} 36... Qd4 {[%clk 0:00:08.5]} 37. f6 {[%clk 0:00:44.7]} 37...
Kh8 {[%clk 0:00:04.5]} 38. fxg7+ {[%clk 0:00:43.3]} 38... Kg8 {[%clk 0:00:04.6]}
39. Rxh6 {[%clk 0:00:33.2]} 39... Ne3 {[%clk 0:00:05]} 40. Rh8+ {[%clk
0:00:12.2]} 40... Kxg7 {[%clk 0:00:04.7]} 41. Qc7+ {[%clk 0:00:11.5]} 41... Kf6
{[%clk 0:00:01.5]} 42. Rh6# {[%clk 0:00:05.1]} 1-0

[Event "*** Titled Tuesday Blitz"]
[Site "Chess.com"]
[Date "2020.04.28"]
[Round "4"]
[White "Antelacus"]
[Black "Chessy222222"]
[Result "1-0"]
[WhiteElo "2314"]
[BlackElo "2105"]
[TimeControl "180+1"]
[EndTime "10:41:12 PDT"]
[Termination "Antelacus won on time"]

1. d4 {[%clk 0:03:00.9]} 1... Nf6 {[%clk 0:02:59.6]} 2. c4 {[%clk 0:03:00.4]}
2... g6 {[%clk 0:02:59.6]} 3. Nc3 {[%clk 0:03:00.3]} 3... Bg7 {[%clk 0:02:59.9]}
4. e4 {[%clk 0:02:59.8]} 4... d6 {[%clk 0:03:00.4]} 5. Nf3 {[%clk 0:02:59.4]}
5... O-O {[%clk 0:03:00.8]} 6. Be2 {[%clk 0:02:59.6]} 6... e5 {[%clk 0:03:00.1]}
7. O-O {[%clk 0:02:59.2]} 7... Na6 {[%clk 0:02:58.5]} 8. Rb1 {[%clk 0:02:53.8]}
8... exd4 {[%clk 0:02:52.2]} 9. Nxd4 {[%clk 0:02:53.1]} 9... Nc5 {[%clk
0:02:52.7]} 10. f3 {[%clk 0:02:49.3]} 10... a5 {[%clk 0:02:51.7]} 11. Be3 {[%clk
0:02:43]} 11... Re8 {[%clk 0:02:50.2]} 12. Qd2 {[%clk 0:02:40.6]} 12... Bd7
{[%clk 0:02:48.8]} 13. b3 {[%clk 0:02:34]} 13... Ne6 {[%clk 0:02:39.3]} 14. Rfe1
{[%clk 0:02:23.7]} 14... b6 {[%clk 0:02:36.3]} 15. a3 {[%clk 0:02:16.7]} 15...
Qb8 {[%clk 0:02:22]} 16. b4 {[%clk 0:02:06.1]} 16... axb4 {[%clk 0:02:20.9]} 17.
axb4 {[%clk 0:02:07]} 17... Qb7 {[%clk 0:02:16.2]} 18. Ra1 {[%clk 0:02:04.3]}
18... Rxa1 {[%clk 0:02:13.2]} 19. Rxa1 {[%clk 0:02:03.3]} 19... Ra8 {[%clk
0:02:14.1]} 20. Qb2 {[%clk 0:01:59.3]} 20... Ne8 {[%clk 0:01:54.6]} 21. Nd5
{[%clk 0:01:56]} 21... c6 {[%clk 0:01:40.7]} 22. Rxa8 {[%clk 0:01:25.1]} 22...
Qxa8 {[%clk 0:01:37.4]} 23. Nxb6 {[%clk 0:01:23.3]} 23... Qa7 {[%clk 0:01:36.5]}
24. Nxd7 {[%clk 0:01:18.2]} 24... Bxd4 {[%clk 0:01:22.4]} 25. Bxd4 {[%clk
0:01:14.3]} 25... Nxd4 {[%clk 0:01:23.3]} 26. Kf1 {[%clk 0:01:05.6]} 26... Nxe2
{[%clk 0:01:19.4]} 27. Nf6+ {[%clk 0:00:56]} 27... Nxf6 {[%clk 0:01:18.9]} 28.
Qxf6 {[%clk 0:00:56.8]} 28... Nd4 {[%clk 0:01:13.1]} 29. Qd8+ {[%clk 0:00:53.5]}
29... Kg7 {[%clk 0:01:12.8]} 30. Qxd6 {[%clk 0:00:53.3]} 30... Qa1+ {[%clk
0:01:10.1]} 31. Kf2 {[%clk 0:00:53.1]} 31... Qa2+ {[%clk 0:00:57.9]} 32. Ke3
{[%clk 0:00:45.1]} 32... Nc2+ {[%clk 0:00:34.3]} 33. Kf4 {[%clk 0:00:40]} 33...
Qxc4 {[%clk 0:00:13.7]} 34. Qe5+ {[%clk 0:00:36.2]} 34... f6 {[%clk 0:00:12.9]}
35. Qc7+ {[%clk 0:00:26.8]} 35... Kh6 {[%clk 0:00:12.9]} 36. h4 {[%clk
0:00:25.3]} 36... Nd4 {[%clk 0:00:11.9]} 37. Qc8 {[%clk 0:00:18.6]} 37... Ne6+
{[%clk 0:00:11.1]} 38. Kg3 {[%clk 0:00:17.3]} 38... Nd4 {[%clk 0:00:09]} 39. Qd7
{[%clk 0:00:14.2]} 39... Qxb4 {[%clk 0:00:08.5]} 40. h5 {[%clk 0:00:11.7]} 40...
Qe1+ {[%clk 0:00:07.7]} 41. Kh2 {[%clk 0:00:11.1]} 41... g5 {[%clk 0:00:06.4]}
42. Qe8 {[%clk 0:00:10]} 42... Qh4+ {[%clk 0:00:04.7]} 43. Kg1 {[%clk
0:00:10.1]} 43... Qe1+ {[%clk 0:00:04]} 44. Kh2 {[%clk 0:00:10.2]} 1-0

[Event "*** Titled Tuesday Blitz"]
[Site "Chess.com"]
[Date "2020.04.28"]
[Round "4"]
[White "Artem_Sadovsky"]
[Black "827883"]
[Result "1-0"]
[WhiteElo "2562"]
[BlackElo "2175"]
[TimeControl "180+1"]
[EndTime "10:41:13 PDT"]
[Termination "Artem_Sadovsky won by checkmate"]

1. Nf3 {[%clk 0:02:59.5]} 1... d5 {[%clk 0:02:59.9]} 2. g3 {[%clk 0:02:59.8]}
2... g6 {[%clk 0:02:59.5]} 3. Bg2 {[%clk 0:03:00.4]} 3... Bg7 {[%clk 0:02:59.8]}
4. O-O {[%clk 0:03:01]} 4... e6 {[%clk 0:03:00.2]} 5. c4 {[%clk 0:03:01.1]} 5...
Ne7 {[%clk 0:02:59.9]} 6. d4 {[%clk 0:02:55.1]} 6... O-O {[%clk 0:02:59.8]} 7.
Nc3 {[%clk 0:02:55]} 7... Nbc6 {[%clk 0:03:00]} 8. c5 {[%clk 0:02:49.7]} 8... b6
{[%clk 0:02:57.8]} 9. Bf4 {[%clk 0:02:30.7]} 9... Ba6 {[%clk 0:02:44.9]} 10. Qa4
{[%clk 0:02:28.6]} 10... Nb8 {[%clk 0:01:59.3]} 11. Rfc1 {[%clk 0:02:16.1]}
11... bxc5 {[%clk 0:01:58.1]} 12. dxc5 {[%clk 0:02:13.4]} 12... Bb7 {[%clk
0:01:19.4]} 13. Ne5 {[%clk 0:01:49.6]} 13... Nbc6 {[%clk 0:01:12.7]} 14. Nd3
{[%clk 0:01:42.1]} 14... e5 {[%clk 0:01:06.8]} 15. Bg5 {[%clk 0:01:41.8]} 15...
f6 {[%clk 0:01:03.9]} 16. Bd2 {[%clk 0:01:10.7]} 16... Rb8 {[%clk 0:00:47]} 17.
b4 {[%clk 0:01:07.6]} 17... a6 {[%clk 0:00:37.5]} 18. Rab1 {[%clk 0:01:06.4]}
18... g5 {[%clk 0:00:30.1]} 19. Qb3 {[%clk 0:00:53.8]} 19... Nd4 {[%clk
0:00:28.4]} 20. Qd1 {[%clk 0:00:54.4]} 20... Kh8 {[%clk 0:00:28.6]} 21. e3
{[%clk 0:00:54.7]} 21... Ndc6 {[%clk 0:00:28.6]} 22. Qh5 {[%clk 0:00:53.7]}
22... e4 {[%clk 0:00:25.8]} 23. Ne1 {[%clk 0:00:44.3]} 23... Qe8 {[%clk
0:00:24.5]} 24. Qxe8 {[%clk 0:00:41.7]} 24... Rfxe8 {[%clk 0:00:25.4]} 25. Nc2
{[%clk 0:00:41.7]} 25... Red8 {[%clk 0:00:25.4]} 26. Ne2 {[%clk 0:00:42.1]}
26... f5 {[%clk 0:00:21.5]} 27. Ncd4 {[%clk 0:00:37]} 27... Nxd4 {[%clk
0:00:21.6]} 28. Nxd4 {[%clk 0:00:37.2]} 28... Bxd4 {[%clk 0:00:13.8]} 29. exd4
{[%clk 0:00:38.1]} 29... h6 {[%clk 0:00:14.5]} 30. h4 {[%clk 0:00:38.7]} 30...
gxh4 {[%clk 0:00:13.4]} 31. gxh4 {[%clk 0:00:37.2]} 31... Kg7 {[%clk 0:00:13.5]}
32. Bf4 {[%clk 0:00:36.8]} 32... Rdc8 {[%clk 0:00:13.2]} 33. Be5+ {[%clk
0:00:36]} 33... Kf7 {[%clk 0:00:13.7]} 34. a4 {[%clk 0:00:34.1]} 34... Ng6
{[%clk 0:00:14.1]} 35. c6 {[%clk 0:00:26.5]} 35... Ba8 {[%clk 0:00:14.1]} 36. b5
{[%clk 0:00:26.5]} 36... Nxe5 {[%clk 0:00:13.4]} 37. dxe5 {[%clk 0:00:26.8]}
37... axb5 {[%clk 0:00:13.7]} 38. axb5 {[%clk 0:00:27.7]} 38... Ke6 {[%clk
0:00:14.1]} 39. f4 {[%clk 0:00:26.8]} 39... exf3 {[%clk 0:00:13.9]} 40. Bxf3
{[%clk 0:00:27.3]} 40... Kxe5 {[%clk 0:00:14.7]} 41. Rc5 {[%clk 0:00:25.6]}
41... Kf4 {[%clk 0:00:13.4]} 42. Kf2 {[%clk 0:00:25.9]} 42... d4 {[%clk
0:00:12]} 43. Rb4 {[%clk 0:00:25.8]} 43... Rd8 {[%clk 0:00:10.5]} 44. Bd5 {[%clk
0:00:17.7]} 44... Ke5 {[%clk 0:00:10]} 45. Bf3+ {[%clk 0:00:17.8]} 45... Kf4
{[%clk 0:00:10.5]} 46. Be2 {[%clk 0:00:16]} 46... Rd6 {[%clk 0:00:10.4]} 47. Bd3
{[%clk 0:00:15]} 47... Kg4 {[%clk 0:00:10.9]} 48. Bxf5+ {[%clk 0:00:14.2]} 48...
Kxh4 {[%clk 0:00:11.3]} 49. Rb1 {[%clk 0:00:10.1]} 49... Rf8 {[%clk 0:00:11.5]}
50. Rh1+ {[%clk 0:00:10.3]} 50... Kg5 {[%clk 0:00:11.8]} 51. Rg1+ {[%clk
0:00:11]} 51... Kf4 {[%clk 0:00:12.2]} 52. Rg4# {[%clk 0:00:10.2]} 1-0